Cogmind - Beta 12 @@@ ROGUE MODE // 2023.03.04 @ 16:51:32 Player: honey223 Result: Self-destructed Performance ------------- Evolutions (5) 2500 Regions Visited (18) 3600 Robots Destroyed (205) 1025 Value Destroyed (10649) 10649 Prototype IDs (13) 260 Alien Tech Used (0) 0 Bonus (7950) 7950 TOTAL SCORE: 25984 Bonus ------- High Alert Combat Kills 2126 Follower Combat Kills 1120 Entered Garrisons 1400 Used RIF Installer 3500 Friendly Fire -196 Cogmind --------- Core Integrity 960/1000 Matter 137/300 Energy 340/340 System Corruption 1% Temperature Danger (412) Movement Treading (490) Ox4 Location -5/Garrison Parts ------- > --- POWER (2) -------- Reinforced Deuterium Engine Light Angular Momentum Engine > --- PROPULSION (4) --- Armored Treads Armored Treads > --- UTILITY (8) ------ Huge Storage Unit Improved Trap Scanner Hardened Heavy Armor Plating Layered Heavy Armor Plating Relay Coupler [Swarmer] (21) Relay Coupler [Grunt] (28) > --- WEAPON (3) ------- Advanced Plasma Cannon Magnetic Acceleration Cannon Magnetic Acceleration Cannon > --- INVENTORY (25) --- Advanced Cooling System Matter Compressor (250) Hardened Heavy Armor Plating Medium Reactive Plating Relay Coupler [NC] (39) Relay Coupler [Swarmer] (46) Relay Coupler [Swarmer] (47) Relay Coupler [Grunt] (33) Relay Coupler [Grunt] (25) Relay Coupler [Grunt] (30) Relay Coupler [Brawler] (25) Relay Coupler [Sentry] (23) Relay Coupler [Sentry] (23) Relay Coupler [Sentry] (19) Relay Coupler [Hunter] (24) Relay Coupler [Heavy] (15) Magnetic Acceleration Cannon Heavy Missile Launcher Remote Datajack Great Maul Peak State ------------ > --- POWER ------------ Reinforced Deuterium Engine Light Angular Momentum Engine > --- PROPULSION ------- Armored Heavy Treads Armored Heavy Treads > --- UTILITY ---------- Advanced Heat Sink Huge Storage Unit Layered Heavy Armor Plating Relay Coupler [NC] Relay Coupler [Swarmer] Relay Coupler [Grunt] Relay Coupler [Sentry] > --- WEAPON ----------- Heavy Assault Cannon Remote Datajack > --- INVENTORY -------- Armored Treads Armored Treads Advanced Cooling System Matter Compressor Improved Trap Scanner Hardened Heavy Armor Plating Medium Reactive Plating Relay Coupler [NC] Relay Coupler [Swarmer] Relay Coupler [Swarmer] Relay Coupler [Grunt] Relay Coupler [Grunt] Relay Coupler [Grunt] Relay Coupler [Brawler] Relay Coupler [Sentry] Relay Coupler [Sentry] Relay Coupler [Hunter] Advanced Plasma Cannon Magnetic Acceleration Cannon Magnetic Acceleration Cannon Magnetic Acceleration Cannon Heavy Missile Launcher Great Maul [Rating: 89] Favorites ----------- Power Reinforced Deuterium Engine Engine Reinforced Deuterium Engine Power Core Light Nuclear Core Reactor Light Antimatter Reactor Propulsion Armored Treads Treads Armored Treads Leg Aluminum Leg Wheel Compact Wheel Utility Huge Storage Unit Device Improved Cooling System Storage Huge Storage Unit Processor Advanced Targeting Computer Hackware Relay Coupler [Sentry] Protection Medium Reactive Plating Weapon Advanced Assault Cannon Energy Gun Particle Gun Energy Cannon Advanced Plasma Cannon Ballistic Gun Heavy Machine Gun Ballistic Cannon Advanced Assault Cannon Launcher Heavy Missile Launcher Special Weapon Remote Datajack Impact Weapon Mace Slashing Weapon Chainsword Special Melee Weapon Improved Datajack Build | -11 -10 -10 -10 -9 -8 -8 -8 -8 -7 -7 -7 -7 -6 -6 -6 -6 -5 -5 ------- Run | Jun Mat Min Exi Min Mat Gar Mat Gar Fac Gar Fac Gar Fac Gar Fac Gar Fac Gar Slots Evolved 10 | . . . . . 4 . . . 2 . . . 2 . . . 2 . Power 1 | . . . . . . . . . . . . . . . . . 1 . Propulsion 2 | . . . . . 1 . . . . . . . 1 . . . . . Utility 6 | . . . . . 2 . . . 2 . . . 1 . . . 1 . Weapon 1 | . . . . . 1 . . . . . . . . . . . . . Parts Attached 182 | 8 10 3 4 1 29 6 1 22 7 20 2 10 2 12 18 15 3 9 Power 17 | 2 . 1 . . 3 1 . 3 1 2 . 1 . 1 . 1 1 . Engine 10 | 2 . 1 . . 1 . . 1 . 2 . . . 1 . 1 1 . Core 6 | . . . . . 2 1 . 2 1 . . . . . . . . . Reactor 1 | . . . . . . . . . . . . 1 . . . . . . Propulsion 26 | 2 . . . . 8 . . 4 . . . . 1 2 7 . . 2 Treads 18 | 2 . . . . 3 . . 4 . . . . 1 2 4 . . 2 Leg 5 | . . . . . 5 . . . . . . . . . . . . . Wheel 3 | . . . . . . . . . . . . . . . 3 . . . Hover . | . . . . . . . . . . . . . . . . . . . Flight . | . . . . . . . . . . . . . . . . . . . Utility 66 | 2 2 1 2 . 8 2 . 8 4 12 . 4 1 2 7 8 2 1 Device 15 | 1 . . . . 1 1 . 2 2 2 . . . . 3 2 1 . Storage 8 | 1 1 1 2 . 2 . . . . 1 . . . . . . . . Processor 4 | . . . . . 2 . . 2 . . . . . . . . . . Hackware 21 | . . . . . 1 1 . 1 2 6 . 3 . 2 1 3 1 . Protection 18 | . 1 . . . 2 . . 3 . 3 . 1 1 . 3 3 . 1 Artifact . | . . . . . . . . . . . . . . . . . . . Weapon 73 | 2 8 1 2 1 10 3 1 7 2 6 2 5 . 7 4 6 . 6 Energy Gun 6 | . 4 . 1 . . . . 1 . . . . . . . . . . Energy Cannon 4 | . . . . . . . . 1 1 . . . . . 1 . . 1 Ballistic Gun 21 | 2 2 1 1 . 6 1 1 1 1 2 . 2 . 1 . . . . Ballistic Cannon 16 | . . . . 1 3 1 . 1 . . 1 . . 2 2 3 . 2 Launcher 6 | . . . . . . . . . . . . 1 . 3 . 1 . 1 Special Weapon 8 | . . . . . . . . 1 . 2 . 2 . 1 . 1 . 1 Impact Weapon 7 | . 2 . . . . 1 . 1 . . . . . . 1 1 . 1 Slashing Weapon 4 | . . . . . . . . 1 . 2 1 . . . . . . . Piercing Weapon . | . . . . . . . . . . . . . . . . . . . Special Melee Weapon 1 | . . . . . 1 . . . . . . . . . . . . . Unidentified Prototypes 1 | . 1 . . . . . . . . . . . . . . . . . Parts Lost 11 | . . . . . . . . 1 . . . . . 2 2 3 . 3 Power . | . . . . . . . . . . . . . . . . . . . Propulsion 2 | . . . . . . . . . . . . . . 1 . . . 1 Utility 7 | . . . . . . . . . . . . . . . 2 3 . 2 Weapon 2 | . . . . . . . . 1 . . . . . 1 . . . . Highest Loss Streak 3 | . . . . . . . . 1 . . . . . 2 1 1 . 3 To Critical Strikes . | . . . . . . . . . . . . . . . . . . . Average Slot Usage (%) 93 | . 99 99 78 100 99 99 100 98 100 93 92 91 88 92 89 79 75 80 Engine 6 | . 14 14 14 14 7 5 . 6 . 5 7 2 . 4 6 6 11 11 Core 1 | . . . . . 1 3 9 2 7 1 . . . . . . . . Treads 22 | . 28 28 28 28 22 27 27 27 23 23 23 23 26 25 14 13 11 15 Device 2 | . . . . . . 3 9 2 6 4 . . . . 4 7 5 5 Storage 8 | . 14 14 14 14 9 9 9 9 7 7 7 7 6 6 6 6 5 5 Processor 6 | . . . . . 8 9 9 17 11 7 7 7 6 6 6 1 . . Hackware 9 | . . . . . 8 5 . . 10 11 15 15 13 19 19 16 22 22 Protection 8 | . 13 14 14 14 9 9 9 7 7 7 7 6 8 6 4 9 5 5 Energy Gun 1 | . 11 14 3 14 . . . . . . . . . . . . . . Energy Cannon 1 | . . . . . . . . 1 4 1 . . . . . 3 . . Ballistic Gun 10 | . 11 13 3 . 19 18 18 16 2 9 8 11 13 11 6 . . . Ballistic Cannon 4 | . . . . 13 7 1 . . 7 3 5 2 . 4 11 7 5 4 Special Weapon 1 | . . . . . . . . 1 7 6 . 4 6 . . 2 5 1 Impact Weapon 1 | . 5 . . . . 7 9 5 . . . . . . . 1 . 3 Naked Turns . | . . . . . . . . . . . . . . . . . . . Heaviest Build 156 | 14 37 96 96 98 121 118 116 122 118 138 123 127 127 129 127 156 142 143 Greatest Support 120 | 40 40 40 40 40 60 60 60 67 67 67 67 67 87 87 120 120 120 120 Greatest Overweight (x) 7 | . . 2 2 2 2 1 1 2 1 2 1 1 1 1 7 1 1 1 Average Overweight (x) . | . . . . 2 . 1 1 1 1 1 1 1 1 1 1 1 1 1 Largest Inventory Capacity 25 | 8 15 25 25 25 25 25 25 25 25 25 25 25 25 25 25 25 25 25 Average Capacity 23 | 7 14 15 17 25 21 25 25 25 25 25 25 25 25 25 25 25 25 25 Most Carried 25 | 5 15 22 23 25 25 25 25 25 25 25 25 25 25 25 25 25 25 25 Average Carried 23 | 3 12 15 16 23 20 24 25 24 24 24 25 24 24 24 24 24 24 24 Final Capacity 25 | 8 15 25 25 25 25 25 25 25 25 25 25 25 25 25 25 25 25 25 Final Carried 25 | 3 15 22 22 25 25 25 25 25 25 25 25 25 24 25 25 25 25 21 Class Distribution -------------------- 36% | Mutant 29% | Botlord-Mutant 15% | Gunner 7% | Commander-Mutant 5% | Bothacker-Mutant Dominant Class ---------------- Mutant | -10/Materials Mutant | -10/Mines Mutant | -10/Exiles Mutant | -9/Mines Gunner | -8/Materials Commander-Mutant | -8/Garrison Commander-Mutant | -8/Materials Mutant | -8/Garrison Bothacker-Mutant | -7/Factory Botlord-Mutant | -7/Garrison Botlord-Mutant | -7/Factory Botlord-Mutant | -7/Garrison Botlord-Mutant | -6/Factory Mutant | -6/Garrison Gunner | -6/Factory Botlord-Mutant | -6/Garrison Botlord-Mutant | -5/Factory Botlord-Mutant | -5/Garrison Resources | -11 -10 -10 -10 -9 -8 -8 -8 -8 -7 -7 -7 -7 -6 -6 -6 -6 -5 -5 ----------- Run | Jun Mat Min Exi Min Mat Gar Mat Gar Fac Gar Fac Gar Fac Gar Fac Gar Fac Gar Matter Collected 6897 | 259 280 130 . 113 1208 76 18 656 149 735 . 680 . 750 778 1050 . 15 Remotely . | . . . . . . . . . . . . . . . . . . . Salvage Created 5939 | 73 264 218 . 97 1030 14 39 987 126 670 . 368 . 494 584 930 . 45 Parts 349 | 8 18 26 . 7 63 . 3 60 3 34 . 31 . 22 30 37 . 7 Haulers Intercepted 2 | . 1 . . . 1 . . . . . . . . . . . . . Recyclers Shooed 2 | 1 . . . . 1 . . . . . . . . . . . . . Parts Field Recycled . | . . . . . . . . . . . . . . . . . . . Retrieved Matter . | . . . . . . . . . . . . . . . . . . . Parts Self-Destructed . | . . . . . . . . . . . . . . . . . . . Prevented . | . . . . . . . . . . . . . . . . . . . Kills | -11 -10 -10 -10 -9 -8 -8 -8 -8 -7 -7 -7 -7 -6 -6 -6 -6 -5 -5 ------- Run | Jun Mat Min Exi Min Mat Gar Mat Gar Fac Gar Fac Gar Fac Gar Fac Gar Fac Gar Combat Hostiles Destroyed 184 | . 7 11 . 3 34 . 1 23 4 17 . 17 . 20 16 28 . 3 Melee 3 | . 1 1 . . . . . . . . . . . . . 1 . . Guns 89 | . 6 10 . . 31 . 1 18 . 5 . 6 . 4 8 . . . Cannons 56 | . . . . 3 3 . . 4 4 11 . 2 . 2 7 20 . . AOE 32 | . . . . . . . . . . . . 9 . 14 1 5 . 3 Classes Destroyed 17 | 1 4 1 . . 2 . 1 3 . . . . . 2 1 2 . . Worker 7 | . . 1 . . 2 . 1 . . . . . . . 3 . . . Builder 1 | . . . . . . . . . . . . . . . 1 . . . Tunneler 4 | 3 . 1 . . . . . . . . . . . . . . . . Hauler 2 | . 1 . . . 1 . . . . . . . . . . . . . Recycler 1 | . . . . . 1 . . . . . . . . . . . . . Watcher 5 | . 2 . . . 1 . . . . 1 . . . . 1 . . . Swarmer 69 | . 3 9 . . 14 . . 4 . 3 . 9 . 10 4 9 . 4 Grunt 64 | . 4 2 . 3 12 . . 6 3 9 . 5 . 5 6 9 . . Brawler 2 | . . . . . . . . . . . . . . 1 . 1 . . Duelist 7 | . . . . . . . . 1 . 3 . . . 2 . 1 . . Sentry 15 | . . . . . 8 . . 4 . 1 . 1 . . 1 . . . Demolisher 1 | . . . . . . . . . . . . . . . . 1 . . Specialist 2 | . . . . . . . . 2 . . . . . . . . . . Hunter 10 | . . . . . . . 1 3 . 1 . . . . 1 4 . . Programmer 13 | . . . . . . . . 3 1 . . 2 . 1 4 2 . . Heavy 1 | . . . . . . . . . . . . . . . . 1 . . Behemoth 1 | . . . . . . . . . . . . . . 1 . . . . Best Kill Streak 11 | 3 3 3 . 3 9 . 1 4 4 5 . 11 . 8 3 10 . 3 Combat Bots Only 11 | . 3 3 . 3 8 . 1 4 4 4 . 11 . 8 3 10 . 3 Max Kills in Single Turn 4 | 1 1 2 . 1 3 . 1 1 1 1 . 3 . 4 1 3 . 3 Gunslinging 1 | . . . . . 1 . . . . . . . . . . . . . Exploded 4 | . . . . . . . . . . . . 3 . 4 1 3 . 3 Melee 1 | . 1 1 . . . . . . . . . . . . . 1 . . Uniques/NPCs Destroyed . | . . . . . . . . . . . . . . . . . . . Combat | -11 -10 -10 -10 -9 -8 -8 -8 -8 -7 -7 -7 -7 -6 -6 -6 -6 -5 -5 -------- Run | Jun Mat Min Exi Min Mat Gar Mat Gar Fac Gar Fac Gar Fac Gar Fac Gar Fac Gar Damage Taken 11601 | . 257 229 . 117 1173 . 32 1336 64 1101 . 850 . 1172 1620 2482 . 1168 Core 989 | . 31 40 . 29 135 . 5 254 . 91 . 87 . 83 83 111 . 40 Absorbed by Shields 53 | . . . . . . . . 53 . . . . . . . . . . Reduced by Siege Mode 264 | . . . . . . . . . . . . . . . 90 174 . . Core Remaining (%) 65 | 100 . . . 60 . . . 28 . . . 74 . . . 67 . . Volleys Fired 469 | 4 19 17 . 5 57 3 2 60 19 74 6 46 . 49 41 59 . 8 Largest 3 | 2 2 2 . 2 3 1 1 3 2 2 1 2 . 3 3 3 . 3 Hottest 204 | 40 85 85 . 100 101 25 25 201 146 146 48 76 . 108 126 191 . 204 Shots Fired 910 | 8 39 34 . 11 157 3 2 115 25 115 6 72 . 81 117 114 . 11 Gun 503 | 8 39 34 . 6 132 3 2 100 3 43 3 38 . 52 40 . . . Cannon 341 | . . . . 5 25 . . 15 17 51 3 24 . 8 77 109 . 7 Launcher 16 | . . . . . . . . . . . . 5 . 8 . 2 . 1 Special 50 | . . . . . . . . . 5 21 . 5 . 13 . 3 . 3 Kinetic 718 | 8 20 17 . 5 157 3 2 94 15 81 6 62 . 60 117 66 . 5 Thermal 126 | . 19 17 . 6 . . . 21 5 13 . . . . . 43 . 2 Explosive 16 | . . . . . . . . . . . . 5 . 8 . 2 . 1 Electromagnetic . | . . . . . . . . . . . . . . . . . . . Robot Hit Streak 31 | 6 7 5 . 6 18 3 3 17 7 14 . 21 . 31 15 18 . 5 Robot Miss Streak 7 | . 5 2 . 1 7 1 1 3 1 3 . 1 . 2 4 2 . 3 Penetration Max 1 | . . . . . . . . 1 . . . . . . . . . . Secondary Targets 11 | . 2 3 . . 3 . . 3 . . . . . . . . . . Max Gunslinging Chain 1 | . 1 1 . . 1 . . 1 . . . . . . . . . . Shots Hit Robots 636 | 6 25 17 . 9 121 3 4 77 17 75 1 49 . 67 78 80 . 7 Core Hits 371 | 3 10 12 . 4 133 2 1 33 7 25 . 23 . 44 26 40 . 8 Critical Kills 5 | . 1 . . . . . . 3 . 1 . . . . . . . . Critical Parts Destroyed 7 | . 1 . . . . . . 2 . . . . . . . 4 . . Critical Strikes 21 | . 2 . . . . . . 5 . 3 . . . 1 2 7 . 1 Meltdown 2 | . . . . . . . . 1 . 1 . . . . . . . . Destroy 4 | . . . . . . . . 4 . . . . . . . . . . Blast 9 | . . . . . . . . . . 2 . . . 1 2 3 . 1 Smash 6 | . 2 . . . . . . . . . . . . . . 4 . . Melee Attacks 72 | . 9 . . . . 11 4 18 . 4 4 . . . 4 17 . 1 Impact 64 | . 9 . . . . 11 4 18 . . . . . . 4 17 . 1 Slashing 8 | . . . . . . . . . . 4 4 . . . . . . . Piercing . | . . . . . . . . . . . . . . . . . . . Sneak Attacks 4 | . 1 . . . . . . . . . 1 . . . 2 . . . Combat Hostiles . | . . . . . . . . . . . . . . . . . . . Follow-up Attacks . | . . . . . . . . . . . . . . . . . . . Damage Inflicted 17711 | 73 469 274 . 149 2300 55 84 1740 413 1499 62 1861 . 2770 2195 3217 . 550 Guns 7143 | 73 308 264 . 63 2036 46 27 1422 47 546 . 525 . 1016 770 . . . Cannons 6212 | . . . . 86 259 . . 268 366 953 . 477 . 170 1044 2413 . 176 Explosions 3310 | . . . . . . . . . . . . 859 . 1584 95 398 . 374 Melee 969 | . 161 . . . . . 41 39 . . 62 . . . 260 406 . . Ramming 77 | . . 10 . . 5 9 16 11 . . . . . . 26 . . . Kinetic 10886 | 73 111 82 . 86 2295 46 27 1333 310 1164 . 1002 . 1186 1814 1253 . 104 Thermal 2564 | . 197 182 . 63 . . . 357 103 335 . . . . 95 1160 . 72 Explosive 3215 | . . . . . . . . . . . . 859 . 1584 . 398 . 374 Electromagnetic . | . . . . . . . . . . . . . . . . . . . Impact 907 | . 161 . . . . . 41 39 . . . . . . 260 406 . . Slashing 62 | . . . . . . . . . . . 62 . . . . . . . Piercing . | . . . . . . . . . . . . . . . . . . . Highest Corruption 4 | . 4 4 4 4 . . . 3 . . . . . . . 4 . 1 Average Corruption 3 | . 3 4 4 4 . . . 2 . . . . . . . 3 . 1 Corruption Purged . | . . . . . . . . . . . . . . . . . . . Corruption Blocked . | . . . . . . . . . . . . . . . . . . . Effects 94 | . 8 26 9 3 . . . 15 . . . . . . . 33 . . Message Errors 20 | . 1 6 1 . . . . 3 . . . . . . . 9 . . Matter Fused 24 | . 1 7 4 . . . . 3 . . . . . . . 9 . . Heat Flow Errors 15 | . 2 6 1 . . . . 3 . . . . . . . 3 . . Energy Discharges 9 | . 2 2 . . . . . 2 . . . . . . . 3 . . Parts Fused 1 | . . 1 . . . . . . . . . . . . . . . . Data Loss (minor) 14 | . 1 3 2 2 . . . 1 . . . . . . . 5 . . Data Loss (major) 5 | . . 1 . . . . . . . . . . . . . 4 . . Misfires 3 | . 1 . . 1 . . . 1 . . . . . . . . . . Alerts 2 | . . . 1 . . . . 1 . . . . . . . . . . Weapon Failures 1 | . . . . . . . . 1 . . . . . . . . . . Overload Shots . | . . . . . . . . . . . . . . . . . . . Overflow Damage 777 | . 25 . . . 5 . . 11 . 19 32 109 . 66 258 239 . 13 Projectiles 121 | . . . . . 5 . . 11 . 19 . 23 . . 19 44 . . Explosions 241 | . . . . . . . . . . . . 86 . 66 71 5 . 13 Melee 415 | . 25 . . . . . . . . . 32 . . . 168 190 . . Knockbacks 55 | . 1 . . 1 1 . 1 1 3 7 . 6 . 4 20 10 . . Impact 5 | . 1 . . . . . 1 1 . . . . . . 1 1 . . Kinetic 47 | . . . . 1 1 . . . 3 7 . 6 . 2 19 8 . . Secondary 3 | . . . . . . . . . . . . . . 2 . 1 . . Self-Inflicted Damage 68 | . . . . . . . . . . . . . . . 68 . . . Shots 1 | . . . . . . . . . . . . . . . 1 . . . Rammed 10 | . . 4 . . 1 1 . 2 . . . . . . 2 . . . Targets Rammed 15 | . . 7 . . 1 1 1 2 . . . . . . 3 . . . Kicked . | . . . . . . . . . . . . . . . . . . . Crushed 5 | . . 3 . . . . 1 . . . . . . . 1 . . . Highest Temperature 599 | . 255 348 124 226 295 . . 599 372 242 30 171 . 123 342 261 . 400 Average Temperature 92 | . 90 117 68 97 90 . . 117 192 67 14 67 . 42 110 80 . 89 Received Heat Transfer 2868 | . 114 39 . 66 504 . . 354 45 237 . 195 . 234 393 519 . 168 Effects 18 | . . . . . . . . 11 2 . . . . . 3 1 . 1 Shutdowns 3 | . . . . . . . . 2 . . . . . . . . . 1 Energy Bleed 2 | . . . . . . . . . . . . . . . 1 1 . . Interference 8 | . . . . . . . . 6 . . . . . . 2 . . . Matter Decay 1 | . . . . . . . . 1 . . . . . . . . . . Short Circuit 1 | . . . . . . . . 1 . . . . . . . . . . Damage (minor) 2 | . . . . . . . . . 2 . . . . . . . . . Damage (core) 1 | . . . . . . . . 1 . . . . . . . . . . Siege Activations 6 | . . . . . . . . . . . . . . . 2 4 . . Total Turns 126 | . . . . . . . . . . . . . . . 47 79 . . Longest Duration 54 | . . . . . . . . . . . . . . . 39 54 . . Robots Corrupted . | . . . . . . . . . . . . . . . . . . . Combat Hostiles . | . . . . . . . . . . . . . . . . . . . Parts Fried 11 | . 3 . . . . . . . . . . . . . 5 3 . . Impact Corruptions 12 | . 2 . . . . . . . . . . . . . 5 5 . . Robots Melted 2 | . . . . . . . . 1 . 1 . . . . . . . . Combat Hostiles 2 | . . . . . . . . 1 . 1 . . . . . . . . Parts Melted 5 | . . . . . . . . 3 . 1 . . . . . 1 . . Heat Transferred 4008 | . 481 407 . 148 . . . 498 150 474 . . . . 50 1725 . 75 Parts Sabotaged . | . . . . . . . . . . . . . . . . . . . Parts Stolen . | . . . . . . . . . . . . . . . . . . . Parts Stripped . | . . . . . . . . . . . . . . . . . . . Power Chain Reactions . | . . . . . . . . . . . . . . . . . . . Missiles Intercepted . | . . . . . . . . . . . . . . . . . . . Alert | -11 -10 -10 -10 -9 -8 -8 -8 -8 -7 -7 -7 -7 -6 -6 -6 -6 -5 -5 ------- Run | Jun Mat Min Exi Min Mat Gar Mat Gar Fac Gar Fac Gar Fac Gar Fac Gar Fac Gar Peak Influence 1752 | 15 139 244 . 51 575 920 661 1674 917 1752 922 1542 809 1104 735 1444 758 580 Initial 919 | . 9 54 . . . 154 448 429 878 530 919 631 809 566 579 251 758 530 Average 674 | 6 51 119 . 28 214 445 548 830 828 1129 920 1152 809 797 428 958 758 559 Maximum Alert Level 5 | . . 1 . . 2 3 2 5 3 5 3 4 3 4 3 4 3 2 Low Security (%) 17 | 100 100 79 . 100 57 1 . . . . . . . . 2 . . . Level 1 14 | . . 20 . . 30 57 . . . . . . . . 55 7 . . Level 2 23 | . . . . . 12 19 100 45 . 16 . 10 . 56 41 10 . 100 Level 3 25 | . . . . . . 22 . 38 100 33 100 27 100 24 . 38 100 . Level 4 17 | . . . . . . . . 12 . 38 . 61 . 18 . 44 . . Level 5 1 | . . . . . . . . 3 . 11 . . . . . . . . High Security . | . . . . . . . . . . . . . . . . . . . Max Security . | . . . . . . . . . . . . . . . . . . . Squads Dispatched 15 | . 1 . . . 3 . 3 . . . . . . . 8 . . . Investigation 7 | . . . . . 2 . 2 . . . . . . . 3 . . . Extermination 4 | . . . . . . . . . . . . . . . 4 . . . Reinforcement 4 | . 1 . . . 1 . 1 . . . . . . . 1 . . . Assault . | . . . . . . . . . . . . . . . . . . . Garrison . | . . . . . . . . . . . . . . . . . . . Intercept . | . . . . . . . . . . . . . . . . . . . Searches Triggered . | . . . . . . . . . . . . . . . . . . . Construction Impeded . | . . . . . . . . . . . . . . . . . . . Haulers Reinforced . | . . . . . . . . . . . . . . . . . . . Active Scanning Responses . | . . . . . . . . . . . . . . . . . . . Cargo Convoy Interrupts . | . . . . . . . . . . . . . . . . . . . Stealth | -11 -10 -10 -10 -9 -8 -8 -8 -8 -7 -7 -7 -7 -6 -6 -6 -6 -5 -5 --------- Run | Jun Mat Min Exi Min Mat Gar Mat Gar Fac Gar Fac Gar Fac Gar Fac Gar Fac Gar Distress Signals 9 | . . . . . 3 . 4 . . 1 . . . . 1 . . . Communications Jammed 21 | . . . . . . . . . . . . . . . . 21 . . Distress Signals 21 | . . . . . . . . . . . . . . . . 21 . . Times Spotted 286 | . 12 10 . 3 49 . 9 25 7 54 . 23 . 25 21 31 . 17 Peak Tracking Total 11 | . 3 3 . 3 9 . 3 4 4 8 . 6 . 11 3 6 . 9 Tactical Retreats 10 | . . . . . 2 . . . . 2 . . . 1 1 4 . . Traps | -11 -10 -10 -10 -9 -8 -8 -8 -8 -7 -7 -7 -7 -6 -6 -6 -6 -5 -5 ------- Run | Jun Mat Min Exi Min Mat Gar Mat Gar Fac Gar Fac Gar Fac Gar Fac Gar Fac Gar Traps Triggered 46 | . 3 . . . . . . 10 . 11 . 6 . 6 4 6 . . Indirectly . | . . . . . . . . . . . . . . . . . . . Trap Hack Attempts 50 | . . . . . 50 . . . . . . . . . . . . . Triggered . | . . . . . . . . . . . . . . . . . . . Disarmed 1 | . . . . . 1 . . . . . . . . . . . . . Reprogrammed 9 | . . . . . 9 . . . . . . . . . . . . . Reused 1 | . . . . . 1 . . . . . . . . . . . . . Traps Extracted . | . . . . . . . . . . . . . . . . . . . Installed . | . . . . . . . . . . . . . . . . . . . Triggered 1 | . . . . . 1 . . . . . . . . . . . . . Machines | -11 -10 -10 -10 -9 -8 -8 -8 -8 -7 -7 -7 -7 -6 -6 -6 -6 -5 -5 ---------- Run | Jun Mat Min Exi Min Mat Gar Mat Gar Fac Gar Fac Gar Fac Gar Fac Gar Fac Gar Machines Disabled 26 | . . . . . . 2 . 1 1 6 . 4 . 2 3 6 . 1 Max in Single Turn 2 | . . . . . . 1 . 1 . 1 . 1 . 1 2 1 . 1 Garrison Relay 16 | . . . . . . 1 . 1 . 5 . 4 . 1 . 3 . 1 Machines Repaired . | . . . . . . . . . . . . . . . . . . . Machines Sabotaged . | . . . . . . . . . . . . . . . . . . . Overloaded Fab Kills . | . . . . . . . . . . . . . . . . . . . Hacking | -11 -10 -10 -10 -9 -8 -8 -8 -8 -7 -7 -7 -7 -6 -6 -6 -6 -5 -5 --------- Run | Jun Mat Min Exi Min Mat Gar Mat Gar Fac Gar Fac Gar Fac Gar Fac Gar Fac Gar Machines Accessed 51 | . 3 . 4 . 11 2 3 3 3 3 1 2 2 1 9 3 1 . Terminals 35 | . 3 . . . 10 2 2 3 . 3 . 2 1 1 5 3 . . Fabricators 3 | . . . . . . . . . 2 . . . . . 1 . . . Repair Stations 1 | . . . . . . . . . . . . . . . 1 . . . Recycling Units . | . . . . . . . . . . . . . . . . . . . Scanalyzers 1 | . . . . . . . . . . . . . . . 1 . . . Garrison Access 7 | . . . . . 1 . 1 . 1 . 1 . 1 . 1 . 1 . Total Hacks 121 | . 9 . 4 . 36 4 12 5 3 8 1 4 3 1 23 7 1 . Successful 61 | . 4 . 4 . 21 2 5 3 3 2 1 2 1 . 9 3 1 . Failed 60 | . 5 . . . 15 2 7 2 . 6 . 2 2 1 14 4 . . Catastrophic 11 | . . . . . 2 . 2 1 . 1 . 1 . 1 2 1 . . Database Lockouts . | . . . . . . . . . . . . . . . . . . . Manual 23 | . 5 . . . 9 . 4 . 1 . . . . . 4 . . . Terminals 99 | . 9 . . . 35 4 8 5 . 8 . 4 2 1 16 7 . . Fabricators 3 | . . . . . . . . . 2 . . . . . 1 . . . Repair Stations 3 | . . . . . . . . . . . . . . . 3 . . . Recycling Units . | . . . . . . . . . . . . . . . . . . . Scanalyzers 2 | . . . . . . . . . . . . . . . 2 . . . Garrison Access 10 | . . . . . 1 . 4 . 1 . 1 . 1 . 1 . 1 . Terminal Hacks 42 | . 3 . 4 . 17 2 2 3 . 2 . 2 . . 4 3 . . Record 5 | . . . 4 . 1 . . . . . . . . . . . . . Robot Analysis 4 | . 2 . . . 2 . . . . . . . . . . . . . Prototype ID Bank 7 | . . . . . 7 . . . . . . . . . . . . . Open Door 4 | . . . . . . 1 . 1 . . . 1 . . . 1 . . Emergency Access Points 6 | . . . . . 1 1 . 1 . 1 . 1 . . . 1 . . Machine Index 1 | . . . . . . . 1 . . . . . . . . . . . Terminal Index 1 | . . . . . . . . . . . . . . . 1 . . . Unreport Threat 4 | . . . . . 2 . . . . . . . . . 2 . . . Locate Traps 2 | . . . . . 1 . . . . . . . . . 1 . . . Reprogram Traps 1 | . . . . . 1 . . . . . . . . . . . . . Hauler Manifests 1 | . 1 . . . . . . . . . . . . . . . . . Registered Components 1 | . . . . . 1 . . . . . . . . . . . . . Zone Layout 2 | . . . . . 1 . 1 . . . . . . . . . . . Patrol Navigation 2 | . . . . . . . . 1 . . . . . . . 1 . . Security Stations 1 | . . . . . . . . . . 1 . . . . . . . . Fabricator Hacks 2 | . . . . . . . . . 1 . . . . . 1 . . . Network Status 1 | . . . . . . . . . 1 . . . . . . . . . Build 1 | . . . . . . . . . . . . . . . 1 . . . Repair Station Hacks 1 | . . . . . . . . . . . . . . . 1 . . . Scan Component 1 | . . . . . . . . . . . . . . . 1 . . . Recycling Unit Hacks . | . . . . . . . . . . . . . . . . . . . Scanalyzer 2 | . . . . . . . . . . . . . . . 2 . . . Insert Component 1 | . . . . . . . . . . . . . . . 1 . . . Analyze 1 | . . . . . . . . . . . . . . . 1 . . . Garrison Access Hacks 7 | . . . . . 1 . 1 . 1 . 1 . 1 . 1 . 1 . Unlock Access 7 | . . . . . 1 . 1 . 1 . 1 . 1 . 1 . 1 . Unauthorized Hacks 7 | . 1 . . . 3 . 2 . 1 . . . . . . . . . Terminals 5 | . 1 . . . 3 . 1 . . . . . . . . . . . Assimilate 1 | . . . . . 1 . . . . . . . . . . . . . Botnet 3 | . . . . . 2 . 1 . . . . . . . . . . . Disrupt 1 | . 1 . . . . . . . . . . . . . . . . . Fabricators 1 | . . . . . . . . . 1 . . . . . . . . . Liberate 1 | . . . . . . . . . 1 . . . . . . . . . Repair Stations . | . . . . . . . . . . . . . . . . . . . Recycling Units . | . . . . . . . . . . . . . . . . . . . Scanalyzers . | . . . . . . . . . . . . . . . . . . . Garrison Access 1 | . . . . . . . 1 . . . . . . . . . . . Reprogram 1 | . . . . . . . 1 . . . . . . . . . . . Data Cores Recovered . | . . . . . . . . . . . . . . . . . . . Used . | . . . . . . . . . . . . . . . . . . . Hacking Detections 40 | . 3 . . . 9 2 3 2 3 3 . 1 1 1 9 2 1 . Full Trace Events 9 | . . . . . 1 . 1 1 . 1 . 1 . . 3 1 . . Feedback Events . | . . . . . . . . . . . . . . . . . . . Feedback Blocked . | . . . . . . . . . . . . . . . . . . . Robot Schematics Acquired . | . . . . . . . . . . . . . . . . . . . Robots Built . | . . . . . . . . . . . . . . . . . . . Authchips . | . . . . . . . . . . . . . . . . . . . Time . | . . . . . . . . . . . . . . . . . . . Total Robot Build Rating . | . . . . . . . . . . . . . . . . . . . Part Schematics Acquired 1 | . . . . . . . . . . . . . . . 1 . . . Parts Built 2 | . . . . . . . . . . . . . . . 2 . . . Authchips . | . . . . . . . . . . . . . . . . . . . Time 64 | . . . . . . . . . . . . . . . 64 . . . Total Part Build Rating 16 | . . . . . . . . . . . . . . . 16 . . . Parts Repaired . | . . . . . . . . . . . . . . . . . . . Time . | . . . . . . . . . . . . . . . . . . . Parts Recycled . | . . . . . . . . . . . . . . . . . . . Recycled Matter . | . . . . . . . . . . . . . . . . . . . Retrieved Matter . | . . . . . . . . . . . . . . . . . . . Retrieved Components . | . . . . . . . . . . . . . . . . . . . Parts Scanalyzed 1 | . . . . . . . . . . . . . . . 1 . . . Part Schematics Acquired 1 | . . . . . . . . . . . . . . . 1 . . . Parts Damaged . | . . . . . . . . . . . . . . . . . . . Bothacking | -11 -10 -10 -10 -9 -8 -8 -8 -8 -7 -7 -7 -7 -6 -6 -6 -6 -5 -5 ------------ Run | Jun Mat Min Exi Min Mat Gar Mat Gar Fac Gar Fac Gar Fac Gar Fac Gar Fac Gar Used RIF Installer 7 | . . . . . . 2 . 1 . 1 . 1 . 1 . 1 . . Command Fork 1 | . . . . . . . . . . . . . . . . 1 . . Signal Jammer 1 | . . . . . . . . . . . . 1 . . . . . . Robot Detection 1 | . . . . . . . . . . . . . . 1 . . . . Watcher Feeds 1 | . . . . . . 1 . . . . . . . . . . . . Program Shield 1 | . . . . . . . . 1 . . . . . . . . . . Autoassimilate 1 | . . . . . . . . . . 1 . . . . . . . . Robots Hacked 41 | . . . . . . . . . 4 15 . 5 . 10 . 4 . 3 Non-combat 1 | . . . . . . . . . 1 . . . . . . . . . Combat 40 | . . . . . . . . . 3 15 . 5 . 10 . 4 . 3 Autoassimilated 6 | . . . . . . . . . . 2 . 1 . 1 . 2 . . Robot Hacks Applied 38 | . . . . . . . . . 4 15 . 4 . 10 . 2 . 3 parse_system 6 | . . . . . . . . . 1 2 . . . 3 . . . . find_garrison 1 | . . . . . . . . . 1 . . . . . . . . . overload_power 1 | . . . . . . . . . . 1 . . . . . . . . reboot_system 1 | . . . . . . . . . . . . 1 . . . . . . overwrite_iff 18 | . . . . . . . . . 1 7 . . . 7 . . . 3 formatsys_high 11 | . . . . . . . . . 1 5 . 3 . . . 2 . . Relay Couplers Released 67 | . . . . . . 5 . 4 . 18 . 18 . 6 . 12 . 4 Machine Destruction 64 | . . . . . . 5 . 4 . 18 . 18 . 3 . 12 . 4 Programmers 3 | . . . . . . . . . . . . . . 3 . . . . Attached 19 | . . . . . . 1 . . 2 6 . 3 . 2 1 3 1 . Fabnet Peak Effective % . | . . . . . . . . . . . . . . . . . . . Robots Rewired 16 | . . . . . . 7 . . . 3 . 2 . . . 4 . . Allies Hacked 2 | . . . . . . . . 2 . . . . . . . . . . Hacks Repelled . | . . . . . . . . . . . . . . . . . . . Allies | -11 -10 -10 -10 -9 -8 -8 -8 -8 -7 -7 -7 -7 -6 -6 -6 -6 -5 -5 -------- Run | Jun Mat Min Exi Min Mat Gar Mat Gar Fac Gar Fac Gar Fac Gar Fac Gar Fac Gar Total Allies 70 | . . 3 . 2 1 7 2 2 5 19 . 6 . 8 . 10 . 5 Largest Group 8 | . . 3 1 2 2 8 8 6 3 4 1 3 . 2 . 4 4 4 Highest-Rated Group 234 | . . 40 16 45 45 164 191 151 80 234 32 88 . 32 . 153 56 56 Highest-Rated Ally 95 | . . 16 16 31 31 39 40 40 39 95 32 32 . 29 . 51 14 14 Total Orders 20 | . . . . . 8 . 1 11 . . . . . . . . . . STAY 11 | . . . . . 4 . 1 6 . . . . . . . . . . FOLLOW 9 | . . . . . 4 . . 5 . . . . . . . . . . Ally Attacks 251 | . . 11 . 2 9 . 29 28 21 94 6 9 . 12 . 21 . 9 Total Damage 5612 | . . 161 . 34 84 . 553 677 285 2644 143 331 . 64 . 552 . 84 Kills 39 | . . 2 . . 1 . 7 3 1 21 . 2 . . . 2 . . Allies Corrupted 2 | . . . . . . . . . . . . . . 2 . . . . Allies Melted 1 | . . . . . . . . . . 1 . . . . . . . . Intel | -11 -10 -10 -10 -9 -8 -8 -8 -8 -7 -7 -7 -7 -6 -6 -6 -6 -5 -5 ------- Run | Jun Mat Min Exi Min Mat Gar Mat Gar Fac Gar Fac Gar Fac Gar Fac Gar Fac Gar Robot Analysis Total 4 | . 2 . . . 2 . . . . . . . . . . . . . Derelict Logs Recovered 3 | . . 2 . 1 . . . . . . . . . . . . . . Drone Launches . | . . . . . . . . . . . . . . . . . . . Drone Recoveries . | . . . . . . . . . . . . . . . . . . . Exploration | -11 -10 -10 -10 -9 -8 -8 -8 -8 -7 -7 -7 -7 -6 -6 -6 -6 -5 -5 ------------- Run | Jun Mat Min Exi Min Mat Gar Mat Gar Fac Gar Fac Gar Fac Gar Fac Gar Fac Gar Turns Passed 20165 | 117 733 1127 532 496 2001 1569 286 2633 678 2039 119 1891 226 1469 1637 2198 144 270 Spaces Moved 7729 | 54 362 611 285 149 711 593 98 903 240 677 36 677 90 531 819 744 55 94 Core 18 | 18 . . . . . . . . . . . . . . . . . . Treads 7156 | 36 362 611 285 149 595 593 98 903 240 677 36 677 90 531 380 744 55 94 Legs 116 | . . . . . 116 . . . . . . . . . . . . . Wheels 439 | . . . . . . . . . . . . . . . 439 . . . Hover . | . . . . . . . . . . . . . . . . . . . Flight . | . . . . . . . . . . . . . . . . . . . Fastest Speed 50 | 50 160 160 160 320 170 250 250 250 250 250 250 250 250 247 145 250 250 250 Average Speed 226 | 123 160 166 182 320 227 250 250 254 250 250 250 250 250 247 168 250 250 250 Slowest Speed 330 | 160 160 320 320 320 330 250 250 330 250 330 250 250 250 250 326 250 250 250 Overloaded Moves . | . . . . . . . . . . . . . . . . . . . Propulsion Burnouts . | . . . . . . . . . . . . . . . . . . . Robots Hopped . | . . . . . . . . . . . . . . . . . . . Cave-ins Triggered 1 | . . . . . . . . 1 . . . . . . . . . . Exploration Rate (%) 44 | 5 55 98 55 38 71 85 13 85 11 79 1 83 3 63 24 66 3 15 Regions Visited 18 Branch Regions 3 Pre-discovered Areas 2 | . . 2 . . . . . . . . . . . . . . . . Known Exits Taken 7 | . . . . . 1 . 1 . 1 . 1 . 1 . 1 . 1 . Unknown Exits Taken 5 | 1 1 1 1 1 . . . . . . . . . . . . . . Scrap Searched 2 | . . 1 . 1 . . . . . . . . . . . . . . Spaces Dug 33 | . 1 . . . 3 1 . 4 1 2 5 14 . . 1 1 . . Terrain Destroyed 186 | . 1 . . . 8 1 . 7 1 2 5 38 . 56 50 11 . 6 Melee 12 | . 1 . . . . 1 . 3 . 2 3 . . . 1 1 . . Projectile 27 | . . . . . 8 . . 4 1 . 2 . . . 7 4 . 1 AOE 147 | . . . . . . . . . . . . 38 . 56 42 6 . 5 Terrain Rammed . | . . . . . . . . . . . . . . . . . . . Walls Destroyed . | . . . . . . . . . . . . . . . . . . . Machines Disabled . | . . . . . . . . . . . . . . . . . . . Actions | -11 -10 -10 -10 -9 -8 -8 -8 -8 -7 -7 -7 -7 -6 -6 -6 -6 -5 -5 --------- Run | Jun Mat Min Exi Min Mat Gar Mat Gar Fac Gar Fac Gar Fac Gar Fac Gar Fac Gar Total 9455 | 97 462 686 298 161 976 657 130 1097 295 917 53 806 92 620 984 947 61 116 Wait 458 | 22 41 36 . . 61 4 24 35 18 60 6 28 . 5 73 45 . . Move 7714 | 53 361 610 284 148 711 592 97 902 240 676 35 676 89 530 818 743 55 94 Hop . | . . . . . . . . . . . . . . . . . . . Pick Up 158 | 10 16 9 8 5 31 3 . 15 7 13 . 5 1 8 11 12 2 2 Fast Attach 42 | . 1 1 1 . 8 3 1 8 . 4 . 3 . 3 6 3 . . Attach 55 | 7 2 . 1 1 8 1 . 7 3 5 . . 2 2 5 4 2 5 Detach 10 | . . . 2 . . . . 2 . 2 . . . 1 1 2 . . Swap 85 | 1 7 2 2 . 13 2 . 7 4 11 2 7 . 7 7 8 1 4 Drop 139 | . 6 4 . 2 36 6 1 20 4 14 . 7 . 7 15 14 1 2 Fire 469 | 4 19 17 . 5 57 3 2 60 19 74 6 46 . 49 41 59 . 8 Melee 72 | . 9 . . . . 11 4 18 . 4 4 . . . 4 17 . 1 Ram . | . . . . . . . . . . . . . . . . . . . Kick . | . . . . . . . . . . . . . . . . . . . Crush 15 | . . 7 . . 1 1 1 2 . . . . . . 3 . . . Escape Stasis 66 | . . . . . . . . 21 . 14 . 12 . 8 . 11 . . Rewire 122 | . . . . . . 31 . . . 40 . 22 . . . 29 . . Trap 50 | . . . . . 50 . . . . . . . . . . . . . Miscellaneous . | . . . . . . . . . . . . . . . . . . . Route ------- -11/Junkyard -10/Materials (discovered 2 exits: [*Mat] / [*Min]) -10/Mines (discovered 3 exits: [*Mat x2] / *Exi) -10/Exiles -9/Mines -8/Materials (discovered 3 exits: *Fac x2 / Gar) -8/Garrison (discovered 3 exits: *Mat x3) -8/Materials -8/Garrison (discovered 3 exits: *Fac x3) -7/Factory (discovered 2 exits: [*Low] / Gar) -7/Garrison (discovered 3 exits: *Fac x3) -7/Factory -7/Garrison (discovered 3 exits: *Fac x3) -6/Factory -6/Garrison (discovered 3 exits: *Fac x3) -6/Factory -6/Garrison (discovered 3 exits: *Fac x3) -5/Factory (discovered 2 exits: [*Upp] / Gar) -5/Garrison History --------- Turn | Location | Event 17 | -11/Junkyard | Discovered new exit (range 15) 118 | -11/Junkyard | Entered Materials 300 | -10/Materials | Build established: Mutant 329 | -10/Materials | Discovered new exit (range 15) 562 | -10/Materials | Discovered new exit (range 11) 851 | -10/Materials | Entered Mines 889 | -10/Mines | Discovered new exit (range 6) 1126 | -10/Mines | Learned 2 Materials zone layouts 1222 | -10/Mines | Discovered new exit (range 12) 1368 | -10/Mines | Learned location of Storage (-7) 1569 | -10/Mines | Assisted by bots powering up and referring to "LRC-V3" 1965 | -10/Mines | Deemed a non-threat by the Exiles lab entrance 1965 | -10/Mines | Discovered new exit (range 5) 1978 | -10/Mines | Entered Exiles 1978 | -10/Exiles | Found Exiles lab abandoned 1978 | -10/Exiles | Accompanied by 1 ally 2033 | -10/Exiles | Discovered new exit (range 14) 2510 | -10/Exiles | Entered Mines 2510 | -9/Mines | Accompanied by 1 ally 2751 | -9/Mines | Discovered new exit (range 13) 3006 | -9/Mines | Entered Materials 3006 | -8/Materials | Accompanied by 2 allies 3006 | -8/Materials | Evolved 4 slots: Propulsion x1, Utility x2, Weapon x1 3011 | -8/Materials | Led the pair of lost Derelicts to an unsafe place 3346 | -8/Materials | Destroyed 8 combat bots 3610 | -8/Materials | Destroyed 7 combat bots 3620 | -8/Materials | Build established: Gunner 3654 | -8/Materials | Discovered new exit (range 14) 4675 | -8/Materials | Discovered new exit (range 4) 5007 | -8/Materials | Identified exit to Garrison 5007 | -8/Materials | Entered Garrison 5007 | -8/Garrison | Discovered recently destroyed garrison 5007 | -8/Garrison | Accompanied by 1 ally 5176 | -8/Garrison | Installed Relay Interface Framework 5412 | -8/Garrison | Build established: Mutant 5465 | -8/Garrison | Discovered new exit (range 11) 5773 | -8/Garrison | Build established: Commander-Mutant 6002 | -8/Garrison | Garrison Relay disabled 6086 | -8/Garrison | Discovered new exit (range 10) 6271 | -8/Garrison | Discovered new exit (range 8) 6334 | -8/Garrison | Expanded RIF knowledge: Watcher Feeds 6576 | -8/Garrison | Entered Materials 6576 | -8/Materials | Accompanied by 8 allies 6808 | -8/Materials | Identified exit to Garrison 6862 | -8/Materials | Entered Garrison 6862 | -8/Garrison | Accompanied by 6 allies 6914 | -8/Garrison | Triggered checkpoint 7221 | -8/Garrison | Build established: Mutant 7258 | -8/Garrison | Triggered checkpoint 7369 | -8/Garrison | Discovered new exit (range 13) 7574 | -8/Garrison | Triggered checkpoint 7744 | -8/Garrison | Discovered new exit (range 15) 7748 | -8/Garrison | Triggered checkpoint 7762 | -8/Garrison | Triggered checkpoint 7884 | -8/Garrison | Expanded RIF knowledge: Program Shield 8286 | -8/Garrison | Triggered checkpoint 8409 | -8/Garrison | Crushed by falling debris 8413 | -8/Garrison | Core integrity fell below 50% 8447 | -8/Garrison | Discovered new exit (range 9) 9086 | -8/Garrison | Triggered checkpoint 9352 | -8/Garrison | Rescued a captive Derelict 9354 | -8/Garrison | Rescued a captive Derelict 9389 | -8/Garrison | Garrison Relay disabled 9491 | -8/Garrison | Build established: Bothacker-Mutant 9495 | -8/Garrison | Entered Factory 9495 | -7/Factory | Accompanied by 3 allies 9495 | -7/Factory | Evolved 2 slots: Utility x2 10013 | -7/Factory | Discovered new exit (range 12) 10173 | -7/Factory | Identified exit to Garrison 10173 | -7/Factory | Entered Garrison 10173 | -7/Garrison | Accompanied by 1 ally 10242 | -7/Garrison | Triggered checkpoint 10297 | -7/Garrison | Expanded RIF knowledge: Autoassimilate 10341 | -7/Garrison | Garrison Relay disabled 10366 | -7/Garrison | Triggered checkpoint 10650 | -7/Garrison | Build established: Botlord-Mutant 10678 | -7/Garrison | Garrison Relay disabled 10792 | -7/Garrison | Triggered checkpoint 10812 | -7/Garrison | Triggered checkpoint 10852 | -7/Garrison | Triggered checkpoint 11006 | -7/Garrison | Garrison Relay disabled 11162 | -7/Garrison | Triggered checkpoint 11203 | -7/Garrison | Found embedded Infiltrators 11235 | -7/Garrison | Discovered new exit (range 14) 11374 | -7/Garrison | Triggered checkpoint 11540 | -7/Garrison | Discovered new exit (range 12) 11664 | -7/Garrison | Triggered checkpoint 11714 | -7/Garrison | Learned Factory security intel 11768 | -7/Garrison | Garrison Relay disabled 11802 | -7/Garrison | Triggered checkpoint 11874 | -7/Garrison | Triggered checkpoint 11973 | -7/Garrison | Discovered new exit (range 12) 12026 | -7/Garrison | Triggered checkpoint 12122 | -7/Garrison | Garrison Relay disabled 12212 | -7/Garrison | Entered Factory 12212 | -7/Factory | Accompanied by 1 ally 12293 | -7/Factory | Identified exit to Garrison 12331 | -7/Factory | Entered Garrison 12392 | -7/Garrison | Expanded RIF knowledge: Signal Jamming 12524 | -7/Garrison | Triggered checkpoint 12529 | -7/Garrison | Triggered checkpoint 12600 | -7/Garrison | Triggered checkpoint 12602 | -7/Garrison | Destroyed 11 combat bots 12706 | -7/Garrison | Discovered new exit (range 15) 13012 | -7/Garrison | Triggered checkpoint 13058 | -7/Garrison | Garrison Relay disabled 13224 | -7/Garrison | Discovered new exit (range 15) 13530 | -7/Garrison | Discovered new exit (range 15) 13624 | -7/Garrison | Triggered checkpoint 13659 | -7/Garrison | Garrison Relay disabled 13858 | -7/Garrison | Garrison Relay disabled 13909 | -7/Garrison | Garrison Relay disabled 14222 | -7/Garrison | Entered Factory 14222 | -6/Factory | Evolved 2 slots: Propulsion x1, Utility x1 14445 | -6/Factory | Identified exit to Garrison 14448 | -6/Factory | Entered Garrison 14628 | -6/Garrison | Spotted B-75 Beast 14678 | -6/Garrison | Destroyed 8 combat bots 14683 | -6/Garrison | Destroyed B-75 Beast 14902 | -6/Garrison | Build established: Gunner 15009 | -6/Garrison | Discovered new exit (range 12) 15044 | -6/Garrison | Triggered checkpoint 15090 | -6/Garrison | Expanded RIF knowledge: Robot Detection 15283 | -6/Garrison | Triggered checkpoint 15328 | -6/Garrison | Triggered checkpoint 15382 | -6/Garrison | Garrison Relay disabled 15434 | -6/Garrison | Build established: Mutant 15583 | -6/Garrison | Discovered new exit (range 7) 15895 | -6/Garrison | Discovered new exit (range 10) 15917 | -6/Garrison | Entered Factory 16226 | -6/Factory | Build established: Gunner 16753 | -6/Factory | Fabricated Arm. Heavy Treads? 17539 | -6/Factory | Identified exit to Garrison 17554 | -6/Factory | Entered Garrison 17556 | -6/Garrison | Triggered checkpoint 17604 | -6/Garrison | Spotted B-75 Beast 17620 | -6/Garrison | Triggered checkpoint 17856 | -6/Garrison | Heavy support dispatched to Factory 17866 | -6/Garrison | Triggered checkpoint 17874 | -6/Garrison | Triggered checkpoint 17874 | -6/Garrison | Triggered checkpoint 17948 | -6/Garrison | Destroyed 10 combat bots 18029 | -6/Garrison | Discovered new exit (range 12) 18096 | -6/Garrison | Expanded RIF knowledge: Command Fork 18164 | -6/Garrison | Triggered checkpoint 18192 | -6/Garrison | Garrison Relay disabled 18360 | -6/Garrison | Build established: Mutant 18635 | -6/Garrison | Discovered new exit (range 11) 18735 | -6/Garrison | Rescued a captive Derelict 18736 | -6/Garrison | Rescued a captive Derelict 18777 | -6/Garrison | Build established: Botlord-Mutant 18780 | -6/Garrison | Garrison Relay disabled 18870 | -6/Garrison | Heavy support dispatched to Factory 19044 | -6/Garrison | Triggered checkpoint 19178 | -6/Garrison | Triggered checkpoint 19208 | -6/Garrison | Garrison Relay disabled 19326 | -6/Garrison | Discovered new exit (range 14) 19752 | -6/Garrison | Entered Factory 19752 | -5/Factory | Accompanied by 4 allies 19752 | -5/Factory | Evolved 2 slots: Power x1, Utility x1 19821 | -5/Factory | Discovered new exit (range 12) 19896 | -5/Factory | Identified exit to Garrison 19896 | -5/Factory | Entered Garrison 19896 | -5/Garrison | Accompanied by 4 allies 19926 | -5/Garrison | Triggered checkpoint 19952 | -5/Garrison | Triggered checkpoint 19965 | -5/Garrison | Garrison Relay disabled 20133 | -5/Garrison | Spotted B-75 Beast 20146 | -5/Garrison | Triggered checkpoint 20150 | -5/Garrison | Triggered checkpoint 20166 | -5/Garrison | Self-destructed Last Messages --------------- 20153_ Slug penetrates S-27 Virus. 20153_ S-27 Virus suffers critical hit (Destroy). 20154_ Jacked S-27 Virus... >>overwrite_iff Rewriting IFF filter. 20154_ Forked command to additional S-27 Virus... >>overwrite_iff Rewriting IFF filter. 20156_ RIF repels hacking attempt against S-27 Virus. 20156_ Slug penetrates S-27 Virus. 20156_ S-27 Virus destroyed. 20158_ Relay Coupler [NC] destroyed. 20159_ Penetrated by Slug. 20160_ Relay Coupler [Sentry] destroyed. 20161_ Slug penetrates Wall. 20162_ Penetrated by Slug. 20164_ Slug penetrates Wall. 20165_ Penetrated by Slug. 20166_ Power failure, Lgt. Angular Momentum Engine shutdown. [Achievement: Superachiever] Map ----- +----------------------------------------------------+ | ?????????????????????????????????????????????????? | | ?????????????????????????????????????????????????? | | ?????????????????????????????????????????????????? | | ?????????????????????????????????????????????????? | | ?????????????????????????????????????????????????? | | ?????????????????????????????????????????????????? | | ?????????????????????????????????????????????????? | | ?????????????????????????????????????????????????? | | ?????????????????????????????????????????????????? | | ???????????????????????????????s?????????????????? | | ???????????????????????#p/#??????????????????????? | | ?????????????????????? [ ??????????????????????? | | ?????????????????s?s?? ????? ????????????????? | | ?????????????????????? [ ???? ????????????????? | | ?????????????????????? =%* ???? #? ????????????? | | ????????????????????###=[ #?? ## ????????????? | | ????????????????????? % ??s "g??????????? | | ????????????????????? ??BB ?????????????? | | ?????????????????????? %[??BB ??????????????? | | ?????????????????????? %%? ????g??????????? | | ??????????????????????# %/## #????????????????? | | ??????????????????#####x=%!; #????????????????? | | ??????????????????? /*[s% ?????????????????? | | ????????????????????? % *h ???????????????????? | | ??????????????????????# *= ?????????????????????? | | ????????????sss????????#/@#??????????????????????? | | ???????????????????????#%=#??????????????????????? | | ???????????????????????#% #??????????????????????? | | ???????????????????????# #??????????????????????? | | ???????????????????????# #??????????????????????? | | ???????????????????????# #??????????????????????? | | ???????????????????????# #??????????????????????? | | ??###################### #??????????????????????? | | ??# #??????????????????????? | | ??# #??????????????????????? | | ??# ######################??????????????????????? | | ??# #???????????????????????????????????????????? | | ??# #???????????????????????????????????????????? | | ??# #???????????????????????????????????????????? | | ??# #???????????????????????????????????????????? | | ??# #???????????????????????????????????????????? | | ??# #???????????????????????????????????????????? | | ??# #???????????????????????????????????????????? | | ??# ###?????????????????????????????????????????? | | ??# #?????????????????????????????????????????? | | ??# #?????????????????????????????????????????? | | ??# #?????????????????????????????????????????? | | ??# ###?????????????????????????????????????????? | | ??# #???????????????????????????????????????????? | | ??# #???????????????????????????????????????????? | +----------------------------------------------------+ Best States ------------- Heat Dissipation 64 Energy Generation 29 Energy Capacity 340 Matter Stores 484 Matter Capacity 500 Sight Range 16 Terrain Scan Density 10 Armor Coverage 825 Resistance: KI 30 Resistance: TH 25 Evasion (%) 50 Targeting Accuracy 8 Core Analysis 6 Recoil Reduction 4 Offensive Hacking 10 Relay Coupler Types 4 Relay Coupler Value 115 Item Schematics ----------------- Hvy. Missile Launcher | -6/Factory | Scanalyzed Robot Schematics ------------------ None Fabricated ------------ Arm. Heavy Treads | x2 | -6/Factory | Preloaded Alien Tech Used ----------------- None Achievements -------------- Factory Defaults Superachiever Challenges ------------ None Game ------ Seed SignalLobotomyTearclaws Manual? 0 Play Time 03:16:26 Cumulative 202.7 hours Start 2023.03.03 @ 20:16:53 End 2023.03.04 @ 16:51:32 Sessions 5 Manual Loads 0 Difficulty Rogue Special Mode None Game No. 47 Rogue 22 Adventurer 25 Explorer 0 Win Type - Total 15 Types 8/2/1/1/1/0/0/1/1 Lore% 81 Gallery% 75 Achievement% 75 Wizard Run 0 Options --------- ASCII 0 Keyboard 0 Movement Mouse Keybinds 0 Fullscreen 2 Font 24/Smallcaps Map View 76x56 Tactical HUD 1 Map Filters NONE Filters NONE Steam 1 RUN: 56a6d2c7-9e4e-478a-adcf-9ff221015073